bitfinex/quotes_ETHUSD_20250622
["timestamp","ask_amount","ask_price","bid_price","bid_amount"]
[1750589496947,10.31792135,2263.7,2263.5,4.41788514]
[1750589497103,10.31792135,2263.7,2263.3,4.41818778]
[1750589497104,1.0596633,2263.6,2263.3,4.41818778]
[1750589497307,1.0596633,2263.6,2262.7,4.41949882]
[1750589497308,1.0596633,2263.6,2263.4,4.41807231]
[1750589497634,1.0596633,2263.6,2263.5,4.41793682]
[1750589498242,1.11488867,2263.6,2263.5,4.41793682]
[1750589499069,0.05522537,2263.6,2263.5,4.41793682]
[1750589499973,9.298,2263.6,2263.5,4.41793682]
[1750589503132,9.729,2264.0,2263.3,0.55]
[1750589503332,19.729,2264.0,2263.9,4.41715623]
[1750589503636,30.10419363,2264.0,2263.8,4.41725208]
[1750589503958,30.10419363,2264.0,2263.9,4.41715623]
[1750589505066,30.10419363,2264.0,2263.8,4.41725343]
[1750589505467,0.05521708,2263.9,2263.8,4.41725343]
[1750589506770,2.17645179,2263.9,2263.7,4.41744277]
[1750589507974,2.17645179,2263.9,2263.8,4.41735135]
[1750589508677,2.17645179,2263.9,2263.7,4.41746286]
[1750589508857,2.17645179,2263.9,2263.8,4.41735135]
[1750589509064,11.47245179,2263.9,2263.8,4.41735135]
[1750589509274,9.296,2263.9,2263.8,4.41735135]
[1750589511247,9.729,2264.0,2263.9,4.41715623]
[1750589511553,1.949,2263.9,2263.8,4.41724647]
[1750589511753,9.35021709,2263.9,2263.8,4.41724647]
[1750589511964,11.28512171,2263.9,2263.5,14.41783231]
[1750589512136,0.8025,2263.8,2263.5,14.41783231]
[1750589512343,7.40122466,2263.7,2263.6,14.41774165]
[1750589512840,7.40122466,2263.7,2263.5,4.41782653]
[1750589513242,7.40122466,2263.7,2263.6,4.41774165]
[1750589513452,8.6155093,2263.7,2263.6,4.41774165]
[1750589513656,7.346,2263.7,2263.6,4.41774165]
[1750589513856,7.40122343,2263.7,2263.6,4.41774165]
[1750589515242,0.8025,2263.8,2263.7,4.41754649]
[1750589515441,9.292,2263.8,2263.7,4.41754649]
[1750589515982,9.292,2263.8,2263.6,4.41767232]
[1750589516141,0.98442343,2263.7,2263.6,4.41767232]
[1750589516780,0.98442343,2263.7,2263.5,4.41783399]
[1750589518893,0.98442343,2263.7,2263.6,4.41774165]
[1750589519102,0.05522343,2263.7,2263.6,4.41774165]
[1750589521691,10.4898,2264.0,2263.8,4.41718945]
[1750589521993,1.946,2263.7,2263.6,4.41774165]
[1750589522302,10.4898,2264.0,2263.8,4.4172055]
[1750589522470,10.39419855,2263.9,2263.8,4.4172055]
[1750589522652,10.33898,2263.9,2263.8,4.4172055]
[1750589523046,10.33898,2263.9,2263.7,4.41744524]
[1750589523248,2.00121964,2263.8,2263.7,4.41744524]
[1750589523480,9.34521964,2263.8,2263.7,4.41744524]
[1750589523786,10.4898,2264.0,2263.8,4.41730497]
[1750589524000,9.34521869,2263.9,2263.8,4.41730497]
[1750589524193,9.29,2263.9,2263.8,4.41730497]
[1750589526795,11.5824038,2264.0,2263.9,4.41715623]
[1750589526979,9.729,2264.0,2263.9,4.41715623]
[1750589527194,19.018,2264.0,2263.9,4.41715623]
[1750589528095,19.017,2264.0,2263.9,4.41715623]
[1750589528897,19.017,2264.0,2263.5,0.55]
[1750589529059,0.05521756,2263.9,2263.8,4.4172469]
[1750589529460,19.017,2264.0,2263.9,4.41715623]
[1750589531520,19.016,2264.0,2263.9,4.41715623]
[1750589531899,9.729,2264.0,2263.9,4.41715623]
[1750589532205,19.9879,2264.0,2263.8,4.41719084]
[1750589532405,19.9879,2264.0,2263.9,4.41715623]
[1750589532566,19.9879,2264.0,2263.0,4.41889821]
[1750589532766,0.05521978,2263.9,2263.8,4.41734522]
[1750589533492,19.9879,2264.0,2263.9,4.41715623]
[1750589533678,19.9879,2264.0,2263.8,4.41725019]
[1750589533880,0.05521823,2263.9,2263.8,4.41725019]
[1750589534092,0.05521823,2263.9,2263.7,4.41747073]
[1750589534394,7.341,2263.8,2263.7,4.41747073]
[1750589537032,7.341,2263.8,2263.6,4.41763206]
[1750589537536,9.34531182,2263.8,2263.7,4.41754649]
[1750589538186,7.341,2263.8,2263.7,4.41754649]
[1750589538985,9.729,2264.0,2263.9,4.41715623]
[1750589539186,19.013,2264.0,2263.9,4.41715623]
[1750589539792,11.674,2264.0,2263.9,4.96715623]
[1750589540125,19.013,2264.0,2263.9,4.96715623]
[1750589540498,1.945,2264.0,2263.9,4.96715623]
[1750589540694,9.284,2264.0,2263.9,4.96715623]
[1750589542508,9.284,2264.0,2263.9,4.41715623]
[1750589543925,9.284,2264.0,2262.6,0.445036]
[1750589543926,10.55534529,2264.0,2262.6,0.445036]
[1750589544123,0.05521966,2263.9,2263.7,4.41745758]
[1750589544428,8.1033,2263.8,2263.5,4.41785753]
[1750589544589,0.05522478,2263.7,2263.6,4.41774165]
[1750589545805,0.05522478,2263.7,2263.4,4.41808189]
[1750589546005,7.337,2263.6,2263.5,4.41786441]
[1750589547388,5.21062881,2263.5,2261.7,4.42145288]
[1750589547592,0.7926,2263.3,2263.0,4.41887204]
[1750589547809,7.39223858,2263.2,2262.2,4.42034079]
[1750589548004,0.7926,2263.1,2262.8,4.41921312]
[1750589548203,0.05524322,2263.0,2262.8,4.41921312]
[1750589548409,9.278,2262.9,2262.8,4.41921312]
[1750589548728,9.278,2262.9,2262.8,4.41930351]
[1750589550745,9.278,2262.9,2262.7,4.41943317]
[1750589550944,9.278,2262.9,2262.8,4.41930351]
[1750589558537,0.7926,2263.1,2263.0,4.41891294]
[1750589558742,10.0696,2263.1,2263.0,4.41891294]
[1750589560008,11.86132746,2263.1,2263.0,4.41891294]
[1750589560844,11.86132746,2263.1,2262.9,4.41901486]
[1750589561050,0.05524126,2263.0,2262.9,4.41901486]
[1750589561925,9.33124126,2263.0,2262.9,4.41901486]
[1750589562129,9.276,2263.0,2262.9,4.41901486]
[1750589562351,2.58432746,2263.1,2263.0,4.41891294]
[1750589562829,11.86032746,2263.1,2263.0,4.41891294]
[1750589563337,3.26627124,2263.2,2263.1,4.41871768]
[1750589563514,12.54227124,2263.2,2263.1,4.41871768]
[1750589563719,5.20727124,2263.2,2263.1,4.41871768]
[1750589563931,12.54227124,2263.2,2263.1,4.41871768]
[1750589564654,5.20727124,2263.2,2263.1,4.41871768]
[1750589564856,12.54227124,2263.2,2263.1,4.41871768]
[1750589567765,3.26627124,2263.2,2263.1,4.41871768]
[1750589567930,12.54127124,2263.2,2263.1,4.41871768]
[1750589569428,12.54027124,2263.2,2263.1,4.41871768]
[1750589570630,3.26627124,2263.2,2263.1,4.41871768]
[1750589570830,5.20727124,2263.2,2263.1,4.96871768]
[1750589571042,12.53927124,2263.2,2263.1,4.96871768]
[1750589572770,5.20727124,2263.2,2263.1,4.96871768]
[1750589572969,12.53927124,2263.2,2263.1,4.96871768]
[1750589578447,3.26627124,2263.2,2263.1,4.96871768]
[1750589578638,10.59627124,2263.2,2263.1,4.96871768]
[1750589580575,10.59627124,2263.2,2263.1,4.41871768]
[1750589587078,3.26627124,2263.2,2263.1,14.96871768]
[1750589592975,3.26627124,2263.2,2263.1,22.29271768]
[1750589593480,1.936,2264.0,2263.9,4.41715623]
[1750589593702,0.7994,2264.6,2264.4,4.41618088]
[1750589593847,10.782,2264.5,2264.4,4.41618088]
[1750589594048,11.94014,2264.5,2264.4,4.41618088]
[1750589594376,16.17,2264.5,2264.4,4.41618088]
[1750589594581,8.846,2264.5,2264.4,4.41618088]
[1750589594878,18.104,2264.5,2264.4,4.41618088]
[1750589596881,18.8968,2264.5,2264.4,4.41618088]
[1750589597091,0.7928,2264.4,2264.3,4.41637592]
[1750589597289,2.73769169,2264.4,2264.3,4.41637592]
[1750589597587,10.10500737,2264.4,2264.3,4.41637592]
[1750589597769,10.0498,2264.4,2264.3,4.41637592]
[1750589598455,10.0488,2264.4,2264.3,4.41637592]
[1750589602099,8.846,2264.5,2264.4,4.41618088]
[1750589602259,18.101,2264.5,2264.4,4.41618088]
[1750589603211,1.935,2264.7,2264.4,4.41618088]
[1750589603367,1.935,2264.7,2264.6,4.41579086]
[1750589603566,9.255,2264.7,2264.6,4.41579086]
[1750589604295,0.7719,2265.0,2264.9,4.41520596]
[1750589604497,10.0259,2265.0,2264.9,4.41520596]
[1750589608425,12.02849,2265.0,2264.8,4.41528969]
[1750589608588,0.05519437,2264.9,2264.8,4.41528969]
[1750589611338,12.02849,2265.0,2264.9,4.41520596]
[1750589616256,0.7719,2265.0,2264.9,4.41520596]
[1750589616432,0.05519185,2265.1,2265.0,4.41501103]
[1750589616669,0.8173,2265.0,2264.1,4.41660968]
[1750589616851,0.8173,2265.0,2264.9,4.41520596]
[1750589617152,3.82903,2265.0,2264.8,4.41529325]
[1750589617353,0.8173,2264.7,2263.3,4.4183017]
[1750589617642,0.8173,2264.4,2264.1,4.41664562]
[1750589617805,10.8173,2264.2,2262.8,4.41918156]
[1750589618007,0.8173,2263.9,2263.4,4.41795611]
[1750589618224,14.41700582,2264.0,2262.4,4.42004924]
[1750589618225,0.8173,2263.7,2263.3,4.41822014]
[1750589618442,7.315,2263.6,2263.4,4.41812524]
[1750589618945,0.05523011,2263.5,2263.4,4.41812524]
[1750589621345,9.245,2263.5,2263.4,4.41812524]
[1750589622047,0.8173,2263.7,2263.6,4.41774165]
[1750589622237,10.1185268,2263.7,2263.6,4.41774165]
[1750589622442,11.79082475,2263.7,2263.6,4.41774165]
[1750589623155,11.79082475,2263.7,2263.5,4.41782074]
[1750589623512,0.05522802,2263.6,2263.5,4.41782074]
[1750589624754,9.30222802,2263.6,2263.5,4.41782074]
[1750589624954,9.247,2263.6,2263.5,4.41782074]
[1750589625838,2.54482475,2263.7,2263.6,4.41774165]
[1750589626149,11.79182475,2263.7,2263.6,4.41774165]
[1750589628750,9.86082475,2263.7,2263.6,4.41774165]
[1750589628924,11.79182475,2263.7,2263.6,4.41774165]
[1750589631962,10.0643,2263.7,2263.6,4.41774165]
[1750589632550,10.0643,2263.7,2263.5,4.41791359]
[1750589632747,0.0552276,2263.6,2263.5,4.41791359]
[1750589632963,0.0552276,2263.6,2263.4,4.41802161]
[1750589633167,9.247,2263.5,2263.4,4.41802161]
[1750589634370,10.25343,2263.5,2263.4,4.41802161]
[1750589638675,9.247,2263.5,2263.4,4.41802161]
[1750589641999,10.0304,2263.5,2263.4,4.41802161]
[1750589642165,10.0304,2263.5,2263.2,4.4185211]
[1750589642365,0.05523448,2263.4,2263.3,4.41832722]
[1750589642567,1.06379793,2263.4,2263.3,4.41832722]
[1750589644962,1.47800144,2263.4,2263.3,4.41832722]
[1750589645194,1.47800575,2263.4,2263.2,4.41845524]
[1750589645377,1.06379793,2263.4,2263.3,4.41832722]
[1750589645575,0.4694406,2263.4,2263.3,4.41832722]
[1750589645875,9.7104406,2263.4,2263.3,4.41832722]
[1750589646200,9.655145,2263.4,2263.3,4.41832722]
[1750589648012,9.6551486,2263.4,2263.3,4.41832722]
[1750589648165,9.65524444,2263.4,2263.3,4.41832722]
[1750589648697,9.65524453,2263.4,2263.3,4.41832722]
[1750589649586,0.41424453,2263.4,2263.3,4.41832722]
[1750589649793,9.70947563,2263.4,2263.3,4.41832722]
[1750589650099,9.65424453,2263.4,2263.3,4.41832722]
[1750589650265,9.65423919,2263.4,2263.3,4.41832722]
[1750589650462,0.41421875,2263.4,2263.3,4.41832722]
[1750589650802,9.70944594,2263.4,2263.3,4.41832722]
[1750589650968,9.65421484,2263.4,2263.3,4.41832722]
[1750589651905,9.65422222,2263.4,2263.3,4.41832722]
[1750589652117,0.41422222,2263.4,2263.3,4.41832722]
[1750589652298,9.65522222,2263.4,2263.3,4.41832722]
[1750589652968,9.241,2263.4,2263.3,4.41832722]
[1750589653169,9.65520281,2263.4,2263.3,4.41832722]
[1750589653521,9.65339354,2263.4,2263.3,4.41832722]
[1750589654010,0.7946,2263.7,2263.5,4.41774789]
[1750589654239,9.70941424,2263.6,2263.5,4.41774789]
[1750589654386,9.65418558,2263.6,2263.5,4.41774789]
[1750589654916,0.41418558,2263.6,2263.5,4.41774789]
[1750589655119,0.46941344,2263.6,2263.5,4.41774789]
[1750589655416,9.70941344,2263.6,2263.5,4.41774789]
[1750589655570,9.65418479,2263.6,2263.5,4.41774789]
[1750589656007,0.7946,2263.5,2263.4,4.41805271]
[1750589656218,0.84982889,2263.9,2263.6,4.41765186]
[1750589656428,10.73816352,2263.8,2263.7,4.41754649]
[1750589656707,10.73816104,2263.8,2263.7,4.41754649]
[1750589657000,10.73816499,2263.8,2263.7,4.41754649]
[1750589657201,10.32398289,2263.8,2263.7,4.41754649]
[1750589657392,10.73817937,2263.8,2263.7,4.41754649]
[1750589658172,9.65319517,2263.8,2263.7,4.41754649]
[1750589658893,9.65321221,2263.8,2263.6,4.41763402]
[1750589659093,0.46943609,2263.7,2263.6,4.41763402]
[1750589659296,0.46943176,2263.7,2263.6,4.41763402]
[1750589659612,0.46943569,2263.7,2263.6,4.41763402]
[1750589659797,9.65321181,2263.7,2263.6,4.41763402]
[1750589660178,9.65315792,2263.7,2263.6,4.41763402]
[1750589660377,9.239,2263.7,2263.6,4.41763402]
[1750589660577,9.65315677,2263.7,2263.6,4.41763402]
[1750589660875,9.65316614,2263.7,2263.5,4.4178635]
[1750589661084,0.0552251,2263.6,2263.5,4.4178635]
[1750589661286,0.46940755,2263.6,2263.5,4.4178635]
[1750589661801,0.46941153,2263.6,2263.5,4.4178635]
[1750589661999,0.0552251,2263.6,2263.5,4.4178635]
[1750589662199,2.19343561,2263.6,2263.3,4.41821447]
[1750589662514,0.414188,2263.5,2263.3,4.41821447]
[1750589662820,7.77941822,2263.4,2263.3,4.41821447]
[1750589663038,8.57163508,2263.4,2263.1,4.41863436]
[1750589663228,0.41420486,2263.3,2263.1,4.41863436]
[1750589663427,1.98323547,2263.2,2263.1,4.41863436]
[1750589667171,2.39745877,2263.2,2263.1,4.41863436]
[1750589667857,2.39745907,2263.2,2263.1,4.41863436]
[1750589668841,3.44742498,2263.2,2262.8,4.41919724]
[1750589669047,1.1726236,2263.1,2262.7,4.41940848]
[1750589669341,7.77753557,2263.0,2262.7,4.41945197]
[1750589669543,0.41429022,2262.9,2262.6,4.41961238]
[1750589669720,0.46915241,2262.8,2262.7,4.41949882]
[1750589669920,0.05524818,2262.8,2262.7,4.41949882]
[1750589670431,0.46915351,2262.8,2262.7,4.41949882]
[1750589671152,0.4691595,2262.8,2262.7,4.41949882]
[1750589671353,0.46916194,2262.8,2262.7,4.41949882]
[1750589672059,0.05524818,2262.8,2262.7,4.41949882]
[1750589672218,2.85783983,2262.8,2262.7,4.41949882]
[1750589672953,2.85783983,2262.8,2262.6,4.41958826]
[1750589673168,2.3928718,2262.7,2262.5,4.41983312]
[1750589673335,7.308,2262.6,2262.5,4.41983312]
[1750589673656,7.72161202,2262.6,2262.5,4.41983312]
[1750589673964,7.308,2262.6,2262.5,4.41983312]
[1750589675457,7.36325059,2262.6,2262.5,4.41983312]
[1750589677924,8.53639727,2262.6,2262.5,4.4198895]
[1750589678261,8.48114668,2262.6,2262.5,4.4198895]
[1750589679269,7.308,2262.6,2262.5,4.4198895]
[1750589679432,7.36325166,2262.6,2262.5,4.4198895]
[1750589681160,7.36325166,2262.6,2262.3,4.42019706]
[1750589681329,7.36325166,2262.6,2262.5,4.4198895]
[1750589681532,7.36325166,2262.6,2262.3,4.42011809]
[1750589681758,8.53639845,2262.6,2262.3,4.42011809]
[1750589681962,8.48114679,2262.6,2262.4,4.42007849]
[1750589682133,0.05525435,2262.5,2262.4,4.42007849]
[1750589682677,0.05525435,2262.5,2262.3,4.42018937]
[1750589682878,0.05525435,2262.5,2262.4,4.42008486]
[1750589683258,1.10129446,2262.5,2262.4,4.42008486]
[1750589684060,1.10129446,2262.5,2262.3,4.42018864]
[1750589684260,1.10129446,2262.5,2262.4,4.42008486]
[1750589684858,1.10129446,2262.5,2262.3,4.42018041]
[1750589685486,0.8055,2262.4,2262.3,4.42018041]
[1750589687488,1.72697945,2262.4,2262.3,4.42018041]
[1750589688497,0.05525435,2262.5,2262.3,4.42018041]
[1750589688498,0.05525435,2262.5,2262.4,4.42008486]
[1750589688795,9.28525435,2262.5,2262.4,4.42008486]
[1750589689103,9.23,2262.5,2262.4,4.42008486]
[1750589689785,0.797,2262.6,2262.5,4.4198895]
[1750589689971,20.43835356,2262.6,2262.5,4.4198895]
[1750589690172,22.65394583,2262.6,2262.5,4.4198895]
[1750589690561,12.62794583,2262.6,2262.5,4.4198895]
[1750589690782,21.85694583,2262.6,2262.5,4.4198895]
[1750589691397,19.64149932,2262.6,2262.5,4.4198895]
[1750589693002,10.41277169,2262.6,2262.5,4.4198895]
[1750589693208,19.64177169,2262.6,2262.5,4.4198895]
[1750589693385,10.41277169,2262.6,2262.5,4.4198895]
[1750589693706,19.229,2262.6,2262.5,4.4198895]
[1750589693906,19.64181509,2262.6,2262.5,4.4198895]
[1750589694106,19.64181373,2262.6,2262.5,4.4198895]
[1750589694626,8.846,2263.0,2262.9,4.41910822]
[1750589694824,18.48703559,2263.0,2262.9,4.41910822]
[1750589694978,18.4870377,2263.0,2262.9,4.41910822]
[1750589696310,18.4870384,2263.0,2262.9,4.41910822]
[1750589696481,18.074,2263.0,2262.9,4.41910822]
[1750589696682,18.48750186,2263.0,2262.9,4.41910822]
[1750589697785,18.48649954,2263.0,2262.9,4.41910822]
[1750589698195,18.48635622,2263.0,2262.9,4.41910822]
[1750589698381,9.25935368,2263.0,2262.9,4.41910822]
[1750589698582,18.48635368,2263.0,2262.9,4.41910822]
[1750589698781,10.77,2263.0,2262.9,4.96910822]
[1750589699013,18.073,2263.0,2262.9,4.96910822]
[1750589701009,18.073,2263.0,2262.9,4.41910822]
[1750589703619,8.846,2263.0,2262.9,4.41910822]
[1750589703800,18.066,2263.0,2262.9,4.41910822]
[1750589703996,8.846,2263.0,2262.9,4.41910822]
[1750589704322,18.065,2263.0,2262.9,4.41910822]
[1750589705618,1.919,2263.0,2262.9,4.96910822]
[1750589705918,9.218,2263.0,2262.9,4.96910822]
[1750589707329,9.218,2263.0,2262.9,4.41910822]
[1750589709611,13.54671855,2263.6,2263.5,4.41793682]
[1750589709805,24.96749383,2263.6,2263.5,4.41793682]
[1750589710006,25.3798383,2263.6,2263.5,4.41793682]
[1750589710736,25.37983785,2263.6,2263.5,4.41793682]
[1750589710920,25.37983785,2263.6,2263.3,4.41825138]
[1750589711126,3.00555652,2263.5,2263.3,4.41825138]
[1750589711322,2.5932125,2263.5,2263.3,4.41825138]
[1750589712718,7.297,2263.4,2263.3,4.41825138]
[1750589713132,7.35223255,2263.4,2263.3,4.41825138]
[1750589713443,2.53798379,2263.5,2263.4,4.41813201]
[1750589713644,11.80821449,2263.5,2263.4,4.41813201]
[1750589713837,11.75298379,2263.5,2263.4,4.41813201]
[1750589714752,3.54671855,2263.6,2263.5,4.41793682]
[1750589714939,11.95961855,2263.6,2263.5,4.41793682]
[1750589716741,12.37171523,2263.6,2263.5,4.41793682]
[1750589716941,11.95961855,2263.6,2263.5,4.41793682]
[1750589717345,15.5324771,2263.6,2263.5,4.41793682]
[1750589717761,6.31871955,2263.6,2263.5,4.41793682]
[1750589718069,15.5869373,2263.6,2263.5,4.41793682]
[1750589718271,15.11939041,2263.6,2263.5,4.41793682]
[1750589718431,12.37093908,2263.6,2263.5,4.41793682]
[1750589718630,12.37093227,2263.6,2263.5,4.41793682]
[1750589718953,12.37093829,2263.6,2263.5,4.41793682]
[1750589719153,3.15793829,2263.6,2263.5,4.41793682]
[1750589719353,12.42616406,2263.6,2263.5,4.41793682]
[1750589719559,12.37098351,2263.6,2263.5,4.41793682]
[1750589720865,11.95861855,2263.6,2263.5,4.41793682]
[1750589721071,12.3714187,2263.6,2263.5,4.41793682]
[1750589721274,12.37141872,2263.6,2263.5,4.41793682]
[1750589722843,12.3714672,2263.6,2263.5,4.41793682]
[1750589723247,3.1584658,2263.6,2263.5,4.41793682]
[1750589723448,12.42469146,2263.6,2263.5,4.41793682]
[1750589723648,12.3694658,2263.6,2263.5,4.41793682]
[1750589723875,12.37022389,2263.6,2263.5,4.41793682]
[1750589725244,15.28707791,2263.6,2263.4,4.41799974]
[1750589725579,0.46886454,2263.5,2263.4,4.41799974]
[1750589726478,9.67986454,2263.5,2263.4,4.41799974]
[1750589726645,9.62486943,2263.5,2263.4,4.41799974]
[1750589727213,0.41386943,2263.5,2263.4,4.41799974]
[1750589727367,9.6790976,2263.5,2263.4,4.41799974]
[1750589727567,9.21,2263.5,2263.4,4.41799974]
[1750589727782,9.6239031,2263.5,2263.4,4.41799974]
[1750589728183,0.4142651,2263.5,2263.4,4.41799974]
[1750589728382,9.6242651,2263.5,2263.4,4.41799974]
[1750589729407,2.74561855,2263.6,2263.5,4.41793682]
[1750589729615,14.70483788,2263.6,2263.5,4.41793682]
[1750589729790,14.64961098,2263.6,2263.5,4.41793682]
[1750589730603,5.44061098,2263.6,2263.5,4.41793682]
[1750589731005,5.49583786,2263.6,2263.5,4.41793682]
[1750589731309,14.69987987,2263.6,2263.5,4.41793682]
[1750589731609,14.64465299,2263.6,2263.5,4.41793682]
[1750589731970,5.44065299,2263.6,2263.5,4.41793682]
[1750589732167,14.69987983,2263.6,2263.5,4.41793682]
[1750589732367,14.64464815,2263.6,2263.5,4.41793682]
[1750589734622,14.64465885,2263.6,2263.5,4.41793682]
[1750589735120,14.23034187,2263.6,2263.5,4.41793682]
[1750589735924,14.6436525,2263.6,2263.5,4.41793682]
[1750589737533,14.64365999,2263.6,2263.4,4.41798092]
[1750589737735,3.01143201,2263.5,2263.2,4.41841753]
[1750589737896,8.49261812,2263.4,2263.3,4.41832722]
[1750589738097,8.0783,2263.4,2263.3,4.41832722]
[1750589738333,8.49266506,2263.4,2263.3,4.41832722]
[1750589738744,14.41832891,2263.3,2262.8,4.41916798]
[1750589739026,0.7893,2263.1,2262.4,4.42005022]
[1750589739219,9.67068345,2263.0,2262.8,4.41929173]
[1750589739535,0.41443811,2262.9,2262.8,4.41929173]
[1750589740206,9.201,2263.0,2262.9,4.41910822]
[1750589740405,9.6148924,2263.0,2262.9,4.41910822]
[1750589740611,9.61489246,2263.0,2262.9,4.41910822]
[1750589740813,9.61489283,2263.0,2262.9,4.41910822]
[1750589741024,9.61490273,2263.0,2262.8,4.41924065]
[1750589741338,0.46914589,2262.9,2262.8,4.41924065]
[1750589741500,0.46916297,2262.9,2262.8,4.41924065]
[1750589742048,0.05524316,2262.9,2262.8,4.41924065]
[1750589742255,0.46912175,2262.9,2262.8,4.41924065]
[1750589742438,0.46912332,2262.9,2262.8,4.41924065]
[1750589743963,0.46879878,2262.9,2262.8,4.41924065]
[1750589744450,0.46873058,2262.9,2262.8,4.41924065]
[1750589744859,0.46873727,2262.9,2262.8,4.41924065]
[1750589746674,0.46854961,2262.9,2262.8,4.41924065]
[1750589747547,0.41330645,2262.9,2262.8,4.41924065]
[1750589747855,10.0,2263.4,2263.0,4.41891294]
[1750589748056,12.04942679,2263.3,2263.1,4.41858814]
[1750589748271,0.41322589,2263.2,2263.1,4.41858814]
[1750589748761,0.41322594,2263.2,2263.1,4.41858814]
[1750589749239,10.41322594,2263.2,2263.1,4.41858814]
[1750589749442,10.0,2263.2,2263.1,4.41858814]
[1750589749647,10.41318703,2263.2,2263.1,4.41858814]
[1750589751074,19.61218703,2263.2,2263.1,4.41858814]
[1750589751258,12.61249722,2263.2,2263.0,4.41883552]
[1750589751461,0.46842465,2263.1,2263.0,4.41883552]
[1750589752276,9.66642465,2263.1,2263.0,4.41883552]
[1750589752482,9.61116623,2263.1,2263.0,4.41883552]
[1750589753177,9.198,2263.1,2263.0,4.41883552]
[1750589753378,0.41316982,2263.1,2263.0,4.41883552]
[1750589753563,9.61116145,2263.1,2263.0,4.41883552]
[1750589754677,2.32616145,2263.1,2263.0,4.41883552]
[1750589754896,9.61116145,2263.1,2263.0,4.41883552]
[1750589755377,9.61115783,2263.1,2263.0,4.41883552]
[1750589756384,3.4292629,2263.5,2263.4,4.41813201]
[1750589756550,13.03941076,2263.5,2263.4,4.41813201]
[1750589757045,13.03941311,2263.5,2263.4,4.41813201]
[1750589757986,12.6262629,2263.5,2263.4,4.41813201]
[1750589758149,13.03944824,2263.5,2263.4,4.41813201]
[1750589759179,13.03945203,2263.5,2263.4,4.41813201]
[1750589759874,13.03943904,2263.5,2263.4,4.41813201]
[1750589760285,15.15538296,2263.5,2262.6,10.0]
[1750589760469,0.41317616,2263.4,2263.3,4.41819778]
[1750589760674,13.4382629,2263.5,2263.4,4.41813201]
[1750589760986,13.85148496,2263.5,2263.3,4.41832455]
[1750589761156,0.4684509,2263.4,2263.3,4.41832455]
[1750589763468,0.46852641,2263.4,2263.3,4.41832455]
[1750589764464,0.41329757,2263.4,2263.3,4.41832455]
[1750589766089,12.6262629,2263.5,2263.3,4.41832455]
[1750589766296,0.41340073,2263.4,2263.3,4.41832455]
[1750589766496,13.96609919,2263.5,2263.4,4.41813201]
[1750589766698,14.37649345,2263.5,2263.4,4.41813201]
[1750589767101,14.37649345,2263.5,2263.3,4.41821979]
[1750589767303,0.46863167,2263.4,2263.3,4.41821979]
[1750589767507,1.91180476,2263.4,2263.3,4.41821979]
[1750589769508,1.91189164,2263.4,2263.3,4.41821979]
[1750589769711,1.91188845,2263.4,2263.3,4.41821979]
[1750589770986,1.9118702,2263.4,2263.3,4.41821979]
[1750589771187,1.91186882,2263.4,2263.3,4.41821979]
[1750589772418,1.91188078,2263.4,2263.3,4.41821979]
[1750589772919,1.91187739,2263.4,2263.3,4.41821979]
[1750589773101,2.68397739,2263.4,2263.3,4.41832722]
[1750589773322,0.4687043,2263.4,2263.3,4.41832722]
[1750589774296,0.41347437,2263.4,2263.3,4.41832722]
[1750589774900,7.69154002,2263.4,2263.3,4.41832722]
[1750589776086,7.69054002,2263.4,2263.3,4.41832722]
[1750589776823,7.69065463,2263.4,2263.3,4.41832722]
[1750589777241,0.41365463,2263.4,2263.3,4.41832722]
[1750589777539,3.4292629,2263.5,2263.4,4.41813201]
[1750589777690,13.02589727,2263.5,2263.4,4.41813201]
[1750589777890,13.02589592,2263.5,2263.4,4.41813201]
[1750589778091,13.02588914,2263.5,2263.4,4.41813201]
[1750589778392,13.02597376,2263.5,2263.4,4.41813201]
[1750589779663,12.6122629,2263.5,2263.4,4.41813201]
[1750589779863,13.02595638,2263.5,2263.4,4.41813201]
[1750589780174,3.84295638,2263.5,2263.4,4.96813201]
[1750589780336,12.6122629,2263.5,2263.4,4.41813201]
[1750589781227,13.02604953,2263.5,2263.4,4.41813201]
[1750589781938,12.6122629,2263.5,2263.4,4.41813201]
[1750589783155,13.02612463,2263.5,2263.4,4.41813201]
[1750589783661,13.02611416,2263.5,2263.4,4.41813201]
[1750589783961,12.6102629,2263.5,2263.4,4.41813201]
[1750589785381,5.3362629,2263.5,2263.4,4.41813201]
[1750589785583,12.6102629,2263.5,2263.4,4.41813201]
[1750589789361,13.87128919,2263.5,2263.4,4.41813201]
[1750589789868,14.66978919,2263.5,2263.3,4.41830527]
[1750589790044,0.05523019,2263.4,2263.3,4.41830527]
[1750589790854,0.46904247,2263.4,2262.7,4.41949882]
[1750589791064,8.49951228,2263.3,2263.1,4.41871126]
[1750589791369,0.46906811,2263.2,2263.1,4.41871126]
[1750589791735,0.4690706,2263.2,2263.1,4.41871126]
[1750589791935,0.4690706,2263.2,2262.9,4.41898233]
[1750589792134,9.59185367,2263.1,2263.0,4.41891294]
[1750589792863,9.59173525,2263.1,2263.0,4.41891294]
[1750589793458,9.58673525,2263.1,2263.0,4.41891294]
[1750589794640,9.173,2263.1,2263.0,4.41891294]
[1750589794968,9.58666153,2263.1,2263.0,4.41891294]
[1750589795871,0.4136595,2263.1,2263.0,4.41891294]
[1750589796073,3.4292629,2263.5,2263.2,4.41835569]
[1750589796074,0.05523528,2263.4,2263.2,4.41835569]
[1750589796272,9.58659841,2263.3,2263.2,4.41835569]
[1750589796628,9.58659966,2263.3,2263.2,4.41835569]
[1750589796830,9.58660032,2263.3,2263.2,4.41835569]
[1750589797444,9.5866053,2263.3,2263.2,4.41835569]
[1750589798171,10.4003053,2263.3,2263.2,4.41835569]
[1750589798334,11.8262441,2263.3,2263.2,4.41835569]
[1750589798538,11.82620813,2263.3,2263.2,4.41835569]
[1750589799044,9.58556933,2263.3,2263.2,4.41835569]
[1750589799240,9.58556085,2263.3,2263.2,4.41835569]
[1750589802665,9.5855524,2263.3,2263.2,4.41835569]
[1750589803779,10.3941524,2263.3,2263.2,4.41835569]
[1750589804177,9.9806,2263.3,2263.2,4.41835569]
[1750589804476,10.39414063,2263.3,2263.2,4.41835569]
[1750589805176,11.77648098,2263.3,2263.2,4.41835569]
[1750589805380,11.36294035,2263.3,2263.1,4.41857776]
[1750589805543,11.36294035,2263.3,2263.2,4.41852244]
[1750589805743,11.77643695,2263.3,2263.2,4.41852244]
[1750589806004,11.77644133,2263.3,2263.2,4.41852244]
[1750589806985,11.36294035,2263.3,2263.2,4.41852244]
[1750589807282,11.77643273,2263.3,2263.2,4.41852244]
[1750589808788,10.39205533,2263.3,2263.2,4.41852244]
[1750589808954,9.58345533,2263.3,2263.2,4.41852244]
[1750589809352,9.17,2263.3,2263.2,4.41852244]
[1750589809706,9.58345552,2263.3,2263.2,4.41852244]
[1750589810187,9.58342197,2263.3,2263.2,4.41852244]